[Event "Bhopal GM Open 2019"]
[Site "Bhopal"]
[Date "2019.12.27"]
[Round "9.17"]
[White "Mahindrakar Indrajeet"]
[Black "Chudasama Ankit"]
[Result "1-0"]
[ECO "B22"]
[WhiteElo "2042"]
[BlackElo "1822"]
[Annotator "NA RC"]
[PlyCount "133"]
[EventDate "2019.12.21"]
[EventType "swiss"]
[EventCountry "IND"]
[SourceTitle "playchess.com"]
[Source "ChessBase"]
[SourceQuality "1"]
[TimeControl "5400+30"]

1. e4 {[%emt 0:00:55]} c5 {[%emt 0:00:00]} 2. c3 {[%emt 0:00:13]} Nf6 {[%emt 0:00:00]} 3. e5 {[%emt 0:00:10]} Nd5 {[%emt 0:00:00]} 4. g3 {[%emt 0:01:21]} d6 $15 {[%emt 0:00:36]} 5. exd6 e6 {[%emt 0:00:08]} 6. Bg2 Bxd6 {[%emt 0:00:07]} 7. Nf3 {[%emt 0:00:49]} Nc6 {[%emt 0:00:06]} 8. O-O {[%emt 0:00:24]} O-O {[%emt 0:00:06]} 9. d4 {[%emt 0:00:31]} cxd4 {[%emt 0:00:06]} 10. Nxd4 {[%emt 0:01:56]} Nxd4 {[%emt 0:00:06]} 11. Qxd4 {[%emt 0:00:05]} Qc7 {[%emt 0:00:05]} 12. Nd2 {[%emt 0:01:15]} Bd7 {[%emt 0:00:08]} 13. Qd3 Bc6 {[%emt 0:05:50]} 14. Ne4 {[%emt 0:05:23]} Be7 {[%emt 0:01:01]} 15. Qe2 {[%emt 0:09:07]} Rac8 {[%emt 0:05:09]} 16. Re1 {[%emt 0:08:56]} Rfd8 {[%emt 0:03:34]} 17. h4 {[%emt 0:03:27]} h6 {[%emt 0:01:16]} 18. Nd2 {[%emt 0:25:19]} b5 {[%emt 0:14:44]} 19. Nf3 {[%emt 0:03:14]} Bf6 {[%emt 0:01:49]} 20. Nh2 {[%emt 0:14:18]} b4 {[%emt 0:17:49]} 21. c4 {[%emt 0:02:36]} Nb6 {[%emt 0:00:25]} 22. Ng4 {[%emt 0:00:46]} Bd4 {[%emt 0:00:51]} 23. Bf4 {[%emt 0:05:25]} e5 {[%emt 0:09:53]} 24. Nxe5 {[%emt 0:11:12]} Bxg2 {[%emt 0:00:20]} 25. Kxg2 {[%emt 0:02:12]} Bxe5 {[%emt 0:00:24]} 26. Bxe5 {[%emt 0:00:45]} Qxc4 {[%emt 0:01:34]} 27. Qf3 {[%emt 0:00:18]} Rd3 {[%emt 0:01:50]} 28. Re3 {[%emt 0:01:43]} Rxe3 {[%emt 0:00:24]} 29. fxe3 {[%emt 0:00:01]} Qc2+ {[%emt 0:02:39]} 30. Kh3 {[%emt 0:00:06]} Rc5 {[%emt 0:00:11]} 31. Bd4 {[%emt 0:01:10]} Rf5 {[%emt 0:00:27]} 32. Rc1 {[%emt 0:00:54]} Qxc1 33. Qxf5 {[%emt 0:00:01]} Qh1+ {[%emt 0:01:41]} 34. Kg4 {[%emt 0:00:01]} Qd1+ {[%emt 0:08:33]} 35. Kh3 {[%emt 0:00:47]} h5 {[%emt 0:00:01]} 36. Qe4 {[%emt 0:01:22]} Nc4 {[%emt 0:04:14]} 37. Qa8+ {[%emt 0:00:31]} Kh7 {[%emt 0:01:33]} 38. Qe4+ g6 {[%emt 0:00:10]} 39. Qa8 {[%emt 0:01:04]} Qg4+ {[%emt 0:06:13]} 40. Kh2 {[%emt 0:00:09]} Qe2+ {[%emt 0:00:19]} 41. Qg2 Qxg2+ {[%emt 0:02:06]} 42. Kxg2 {[%emt 0:00:45]} a6 {[%emt 0:01:44]} 43. Kf3 {[%emt 0:00:41]} Nd2+ {[%emt 0:00:15]} 44. Kf4 {[%emt 0:00:45]} Kg8 {[%emt 0:00:35]} 45. b3 {[%emt 0:00:28]} Nb1 {[%emt 0:02:04]} 46. Ke4 {[%emt 0:00:40]} Nd2+ {[%emt 0:00:09]} 47. Kd3 {[%emt 0:00:30]} Nf1 {[%emt 0:00:05]} 48. Be5 {[%emt 0:00:10]} f6 {[%emt 0:00:13]} 49. Bc7 {[%emt 0:00:49]} Kf7 {[%emt 0:00:06]} 50. g4 {[%emt 0:00:45]} g5 51. Ke2 {[%emt 0:00:40]} gxh4 {[%emt 0:02:08]} 52. Kxf1 {[%emt 0:00:24]} hxg4 {[%emt 0:00:04]} 53. Bd6 {[%emt 0:00:30]} Ke6 {[%emt 0:00:34]} 54. Bxb4 {[%emt 0:00:04]} Kf5 {[%emt 0:00:24]} 55. Be1 {[%emt 0:00:27]} g3 {[%emt 0:00:12]} 56. Kg2 {[%emt 0:01:06]} Kg4 {[%emt 0:00:05]} 57. b4 {[%emt 0:00:27]} h3+ {[%emt 0:00:04]} 58. Kh1 {[%emt 0:00:32]} Kf3 {[%emt 0:00:06]} 59. Bxg3 {[%emt 0:00:42]} Kxg3 {[%emt 0:02:33]} 60. a4 {[%emt 0:00:00]} Kf3 {[%emt 0:00:30]} 61. b5 {[%emt 0:00:20]} axb5 {[%emt 0:00:25]} 62. axb5 {[%emt 0:00:23]} Kxe3 {[%emt 0:00:06]} 63. b6 {[%emt 0:00:06]} f5 {[%emt 0:00:03]} 64. b7 {[%emt 0:00:11]} f4 65. b8=Q {[%emt 0:00:17]} f3 {[%emt 0:00:05]} 66. Kg1 {[%emt 0:00:42]} Ke2 {[%emt 0:01:14]} 67. Qh2+ {[%emt 0:00:11]} 1-0

[Event "Bhopal GM Open 2019"]
[Site "Bhopal"]
[Date "2019.12.27"]
[Round "9.18"]
[White "Love Jindal"]
[Black "Sri Sai Baswanth P"]
[Result "0-1"]
[ECO "A67"]
[WhiteElo "1714"]
[BlackElo "2027"]
[Annotator "NA RC"]
[PlyCount "118"]
[EventDate "2019.12.21"]
[EventType "swiss"]
[EventCountry "IND"]
[SourceTitle "playchess.com"]
[Source "ChessBase"]
[SourceQuality "1"]
[TimeControl "5400+30"]

1. d4 {[%emt 0:00:00]} Nf6 {[%emt 0:04:28]} 2. c4 {[%emt 0:00:00]} c5 {[%emt 0:00:04]} 3. d5 {[%emt 0:00:00]} e6 {[%emt 0:00:05]} 4. Nc3 {[%emt 0:00:00]} exd5 {[%emt 0:00:05]} 5. cxd5 {[%emt 0:00:03]} d6 {[%emt 0:00:03]} 6. e4 {[%emt 0:00:03]} g6 {[%emt 0:00:04]} 7. f4 {[%emt 0:00:04]} Bg7 {[%emt 0:00:04]} 8. Bb5+ {[%emt 0:00:03]} Nfd7 {[%emt 0:00:05]} 9. Nf3 {[%emt 0:00:04]} a6 {[%emt 0:00:09]} 10. Bd3 {[%emt 0:00:01]} b5 {[%emt 0:00:15]} 11. O-O {[%emt 0:00:08]} O-O {[%emt 0:00:17]} 12. a3 {[%emt 0:00:30]} Bb7 {[%emt 0:00:30]} 13. Kh1 {[%emt 0:03:18]} Qe7 {[%emt 0:15:20]} 14. f5 {[%emt 0:30:53]} Ne5 {[%emt 0:01:24]} 15. Bg5 {[%emt 0:03:13]} Bf6 {[%emt 0:00:05]} 16. Bxf6 {[%emt 0:00:24]} Qxf6 {[%emt 0:00:06]} 17. fxg6 {[%emt 0:01:33]} hxg6 {[%emt 0:05:45]} 18. Qd2 {[%emt 0:11:08]} Nbd7 {[%emt 0:01:27]} 19. Ng5 {[%emt 0:00:05]} Qh8 {[%emt 0:01:01]} 20. Be2 {[%emt 0:02:42]} Qh6 {[%emt 0:04:47]} 21. Qf4 {[%emt 0:00:39]} c4 {[%emt 0:01:51]} 22. Nd1 {[%emt 0:05:10]} f6 {[%emt 0:18:42]} 23. Ne6 {[%emt 0:00:10]} Qxf4 {[%emt 0:00:06]} 24. Rxf4 {[%emt 0:00:08]} Rf7 {[%emt 0:00:05]} 25. Nc3 {[%emt 0:04:55]} Nf8 {[%emt 0:04:40]} 26. Raf1 {[%emt 0:00:30]} Re8 {[%emt 0:00:30]} 27. Nd4 {[%emt 0:07:14]} Kg7 {[%emt 0:05:02]} 28. h4 {[%emt 0:00:04]} Bc8 {[%emt 0:00:44]} 29. h5 {[%emt 0:07:29]} Nh7 {[%emt 0:03:24]} 30. hxg6 {[%emt 0:09:07]} Nxg6 {[%emt 0:00:05]} 31. Rf5 {[%emt 0:00:21]} Ng5 {[%emt 0:00:30]} 32. Bf3 {[%emt 0:08:08]} Rh8+ {[%emt 0:00:05]} 33. Kg1 {[%emt 0:00:02]} Nh4 {[%emt 0:00:10]} 34. Rf4 {[%emt 0:00:09]} Ng6 {[%emt 0:00:58]} 35. Rf5 {[%emt 0:01:23]} Kf8 {[%emt 0:03:24]} 36. Bg4 {[%emt 0:01:34]} Bxf5 {[%emt 0:01:43]} 37. Bxf5 {[%emt 0:00:07]} Ne5 {[%emt 0:01:03]} 38. Be6 {[%emt 0:00:05]} Rfh7 {[%emt 0:02:11]} 39. Rxf6+ {[%emt 0:00:11]} Ke7 {[%emt 0:00:05]} 40. Rf5 {[%emt 0:00:54]} Ng4 {[%emt 0:01:25]} 41. Kf1 {[%emt 0:02:14]} Nxe6 {[%emt 0:01:18]} 42. dxe6 {[%emt 0:00:54]} Ne3+ {[%emt 0:00:07]} 43. Ke2 {[%emt 0:00:04]} Nxf5 {[%emt 0:00:07]} 44. Nd5+ {[%emt 0:00:08]} Kf8 {[%emt 0:02:23]} 45. exf5 {[%emt 0:00:07]} Rh4 {[%emt 0:00:27]} 46. Ke3 {[%emt 0:00:46]} R8h5 {[%emt 0:02:15]} 47. e7+ {[%emt 0:01:39]} Kf7 {[%emt 0:00:14]} 48. Ne6 {[%emt 0:00:14]} Rh6 {[%emt 0:07:16]} 49. Nd8+ {[%emt 0:03:43]} Ke8 {[%emt 0:00:35]} 50. Nc6 {[%emt 0:00:10]} Rh8 {[%emt 0:03:52]} 51. f6 {[%emt 0:00:40]} R4h5 {[%emt 0:00:54]} 52. Ke4 {[%emt 0:00:29]} Rg5 {[%emt 0:03:52]} 53. Nd8 {[%emt 0:01:01]} Re5+ {[%emt 0:00:06]} 54. Kd4 {[%emt 0:00:20]} Rh4+ {[%emt 0:00:03]} 55. Kc3 {[%emt 0:00:38]} Rxd5 {[%emt 0:00:04]} 56. Ne6 {[%emt 0:00:23]} Re5 {[%emt 0:00:19]} 57. Nc7+ {[%emt 0:01:21]} Kf7 {[%emt 0:00:08]} 58. Kb4 {[%emt 0:00:20]} c3+ {[%emt 0:00:26]} 59. Kxc3 {[%emt 0:00:08]} Rc4+ {[%emt 0:00:04]} 0-1

[Event "Bhopal GM Open 2019"]
[Site "Bhopal"]
[Date "2019.12.27"]
[Round "9.19"]
[White "Trivedi Karan R"]
[Black "Lund Rachit"]
[Result "1-0"]
[ECO "A45"]
[WhiteElo "1949"]
[BlackElo "1625"]
[Annotator "NA RC"]
[PlyCount "105"]
[EventDate "2019.12.21"]
[EventType "swiss"]
[EventCountry "IND"]
[SourceTitle "playchess.com"]
[Source "ChessBase"]
[SourceQuality "1"]
[TimeControl "5400+30"]

1. d4 {[%emt 0:00:00]} Nf6 {[%emt 0:00:08]} 2. Nc3 {[%emt 0:00:19]} d5 {[%emt 0:00:32]} 3. Bf4 {[%emt 0:00:09]} Bf5 {[%emt 0:05:48]} 4. e3 {[%emt 0:01:35]} e6 {[%emt 0:01:07]} 5. Nf3 {[%emt 0:07:05]} Be7 {[%emt 0:22:02]} 6. Ne5 {[%emt 0:01:27]} Nfd7 {[%emt 0:05:10]} 7. g4 {[%emt 0:09:09]} Bg6 {[%emt 0:01:22]} 8. Nxg6 {[%emt 0:04:04]} hxg6 {[%emt 0:00:18]} 9. Nb5 {[%emt 0:00:56]} Bb4+ {[%emt 0:09:30]} 10. c3 {[%emt 0:06:33]} Ba5 {[%emt 0:00:29]} 11. Qa4 {[%emt 0:04:56]} Nc6 {[%emt 0:03:16]} 12. b4 {[%emt 0:02:19]} Bb6 13. c4 dxc4 {[%emt 0:06:13]} 14. Bg2 {[%emt 0:02:47]} O-O {[%emt 0:02:24]} 15. Nc3 {[%emt 0:03:18]} Nxd4 {[%emt 0:13:40]} 16. exd4 {[%emt 0:03:06]} Bxd4 {[%emt 0:00:04]} 17. Bd2 {[%emt 0:00:47]} Qf6 {[%emt 0:04:18]} 18. O-O {[%emt 0:01:20]} c6 {[%emt 0:04:19]} 19. Rad1 {[%emt 0:02:33]} Ne5 {[%emt 0:05:18]} 20. Ne4 {[%emt 0:00:35]} Qh4 {[%emt 0:00:36]} 21. Bg5 {[%emt 0:00:28]} Qxg4 {[%emt 0:00:14]} 22. Kh1 {[%emt 0:06:55]} Nd3 {[%emt 0:03:04]} 23. Qc2 {[%emt 0:02:44]} b5 {[%emt 0:01:32]} 24. Rxd3 {[%emt 0:03:38]} cxd3 {[%emt 0:00:17]} 25. Qxd3 {[%emt 0:00:05]} Bb6 {[%emt 0:03:01]} 26. Be7 {[%emt 0:02:45]} Rfe8 {[%emt 0:01:01]} 27. Bf6 {[%emt 0:00:14]} Qf5 {[%emt 0:00:48]} 28. Bb2 {[%emt 0:01:38]} Rad8 {[%emt 0:01:31]} 29. Qg3 {[%emt 0:00:16]} e5 {[%emt 0:02:19]} 30. Ng5 {[%emt 0:01:13]} e4 {[%emt 0:02:15]} 31. Qh4 {[%emt 0:00:38]} Bd4 {[%emt 0:00:30]} 32. Bc1 {[%emt 0:04:17]} Bf6 {[%emt 0:00:54]} 33. Re1 {[%emt 0:01:36]} Bxg5 {[%emt 0:00:51]} 34. Bxg5 {[%emt 0:00:10]} f6 {[%emt 0:00:40]} 35. Be3 {[%emt 0:00:19]} Qd7 {[%emt 0:00:49]} 36. Bxe4 {[%emt 0:00:54]} f5 {[%emt 0:01:03]} 37. Bf3 {[%emt 0:01:11]} Qd6 38. Rc1 {[%emt 0:01:28]} Qd3 {[%emt 0:01:05]} 39. Rd1 {[%emt 0:01:59]} Qc4 {[%emt 0:00:18]} 40. Qxc4+ {[%emt 0:00:44]} bxc4 {[%emt 0:00:13]} 41. Rc1 {[%emt 0:00:09]} f4 {[%emt 0:00:52]} 42. Bxa7 {[%emt 0:00:29]} Rd3 {[%emt 0:00:37]} 43. Bxc6 {[%emt 0:00:17]} Red8 {[%emt 0:00:15]} 44. Bb5 {[%emt 0:00:47]} Rd1+ {[%emt 0:00:18]} 45. Rxd1 {[%emt 0:00:06]} Rxd1+ {[%emt 0:00:01]} 46. Kg2 {[%emt 0:00:16]} c3 {[%emt 0:00:38]} 47. Ba4 {[%emt 0:00:12]} Rd2 {[%emt 0:00:39]} 48. Bb3+ {[%emt 0:01:23]} Kh7 {[%emt 0:00:13]} 49. b5 {[%emt 0:01:56]} Rxa2 {[%emt 0:01:25]} 50. b6 {[%emt 0:09:11]} Rb2 {[%emt 0:00:20]} 51. Ba4 {[%emt 0:00:17]} g5 {[%emt 0:00:40]} 52. Kf3 {[%emt 0:03:13]} Kg6 {[%emt 0:00:30]} 53. Kg4 {[%emt 0:01:35]} 1-0

[Event "Bhopal GM Open 2019"]
[Site "Bhopal"]
[Date "2019.12.28"]
[Round "10.6"]
[White "Mirzoev, Azer"]
[Black "Sharan, Rao"]
[Result "1/2-1/2"]
[ECO "E21"]
[WhiteElo "2457"]
[BlackElo "1912"]
[Annotator "ChessBase"]
[PlyCount "113"]
[EventDate "2019.12.21"]
[EventType "swiss"]
[EventCountry "IND"]
[SourceTitle "playchess.com"]
[Source "ChessBase"]
[SourceQuality "1"]
[TimeControl "5400+30"]

1. d4 {[%emt 0:00:00]} Nf6 {[%emt 0:00:00]} 2. Nf3 {[%emt 0:00:00]} e6 {[%emt 0:00:06]} 3. c4 {[%emt 0:00:00]} b6 {[%emt 0:00:31]} 4. Nc3 {[%emt 0:00:00]} Bb7 {[%emt 0:00:04]} 5. Qc2 {[%emt 0:00:00]} Bb4 {[%emt 0:02:27]} 6. a3 {[%emt 0:00:28]} Bxc3+ {[%emt 0:00:19]} 7. Qxc3 {[%emt 0:00:03]} Ne4 {[%emt 0:02:42]} 8. Qc2 {[%emt 0:00:06]} O-O {[%emt 0:01:23]} 9. g3 {[%emt 0:00:05]} d5 {[%emt 0:05:49]} 10. Bg2 {[%emt 0:00:23]} Nd7 {[%emt 0:01:45]} 11. O-O {[%emt 0:05:15]} c5 {[%emt 0:02:06]} 12. cxd5 {[%emt 0:00:17]} Bxd5 {[%emt 0:02:12]} 13. Ne5 {[%emt 0:05:40]} Nef6 {[%emt 0:05:33]} 14. e4 {[%emt 0:07:51]} Bb7 {[%emt 0:00:54]} 15. Rd1 {[%emt 0:02:21]} Qc8 {[%emt 0:07:33]} 16. Nxd7 {[%emt 0:06:14]} Nxd7 {[%emt 0:00:51]} 17. Be3 {[%emt 0:01:05]} cxd4 {[%emt 0:01:43]} 18. Qxc8 {[%emt 0:00:06]} Raxc8 {[%emt 0:00:09]} 19. Bxd4 {[%emt 0:00:09]} Rfd8 {[%emt 0:03:34]} 20. f3 {[%emt 0:01:19]} f6 {[%emt 0:02:29]} 21. Rac1 {[%emt 0:01:40]} Rxc1 {[%emt 0:04:05]} 22. Rxc1 {[%emt 0:00:17]} Rc8 {[%emt 0:00:40]} 23. Rd1 {[%emt 0:00:18]} Kf7 {[%emt 0:01:53]} 24. Bc3 {[%emt 0:00:38]} Ke7 {[%emt 0:02:43]} 25. h4 {[%emt 0:01:25]} Rd8 {[%emt 0:08:38]} 26. Rc1 {[%emt 0:00:45]} Nc5 {[%emt 0:06:00]} 27. Bb4 {[%emt 0:01:38]} Rc8 {[%emt 0:00:14]} 28. Bf1 {[%emt 0:02:43]} a5 {[%emt 0:01:33]} 29. Bd2 {[%emt 0:03:07]} Nb3 {[%emt 0:02:25]} 30. Rxc8 {[%emt 0:00:09]} Bxc8 {[%emt 0:00:03]} 31. Be3 {[%emt 0:00:04]} Nc5 {[%emt 0:00:49]} 32. Kf2 {[%emt 0:00:40]} Kd6 33. Ke1 {[%emt 0:00:14]} g6 {[%emt 0:07:59]} 34. Kd2 {[%emt 0:00:30]} f5 {[%emt 0:02:09]} 35. exf5 {[%emt 0:05:24]} exf5 {[%emt 0:00:54]} 36. Kc3 {[%emt 0:01:18]} Bb7 {[%emt 0:05:25]} 37. Be2 {[%emt 0:00:49]} Na4+ {[%emt 0:02:02]} 38. Kc2 {[%emt 0:01:04]} Nc5 {[%emt 0:00:06]} 39. Bf4+ {[%emt 0:05:26]} Kd5 {[%emt 0:01:14]} 40. Be3 {[%emt 0:01:32]} Kd6 {[%emt 0:00:24]} 41. b3 {[%emt 0:06:14]} Bd5 {[%emt 0:01:14]} 42. Kc3 {[%emt 0:00:58]} Kc6 {[%emt 0:04:35]} 43. b4 {[%emt 0:01:16]} Na4+ {[%emt 0:02:07]} 44. Kd4 {[%emt 0:00:11]} axb4 {[%emt 0:00:28]} 45. axb4 {[%emt 0:00:06]} b5 {[%emt 0:00:49]} 46. Bc1 {[%emt 0:14:06]} Nb6 {[%emt 0:00:29]} 47. Ke5 {[%emt 0:00:07]} Bc4 {[%emt 0:02:11]} 48. Bd1 {[%emt 0:00:19]} Nd5 {[%emt 0:03:09]} 49. Bd2 {[%emt 0:00:04]} Kd7 {[%emt 0:00:43]} 50. g4 {[%emt 0:00:17]} fxg4 51. fxg4 {[%emt 0:00:04]} Ke7 {[%emt 0:02:15]} 52. Bf3 {[%emt 0:00:11]} Nc7 {[%emt 0:00:52]} 53. Bg5+ {[%emt 0:00:52]} Kf7 {[%emt 0:00:03]} 54. Kd6 {[%emt 0:01:59]} Ne8+ {[%emt 0:01:13]} 55. Kc5 {[%emt 0:01:08]} Nf6 {[%emt 0:01:03]} 56. Bf4 {[%emt 0:01:18]} Ke6 {[%emt 0:00:30]} 57. Kd4 {[%emt 0:00:30]} 1/2-1/2

[Event "Bhopal GM Open 2019"]
[Site "Bhopal"]
[Date "2019.12.28"]
[Round "10.12"]
[White "Rathneesh R"]
[Black "Varun, V."]
[Result "1/2-1/2"]
[ECO "A15"]
[WhiteElo "2006"]
[BlackElo "2250"]
[Annotator "ChessBase"]
[PlyCount "46"]
[EventDate "2019.12.21"]
[EventType "swiss"]
[EventCountry "IND"]
[SourceTitle "playchess.com"]
[Source "ChessBase"]
[SourceQuality "1"]
[TimeControl "5400+30"]

1. c4 {[%emt 0:00:00]} Nf6 {[%emt 0:00:56]} 2. g3 {[%emt 0:00:19]} g6 {[%emt 0:00:06]} 3. Bg2 {[%emt 0:00:18]} Bg7 {[%emt 0:00:07]} 4. Nc3 {[%emt 0:00:36]} O-O {[%emt 0:00:08]} 5. d3 {[%emt 0:00:22]} c5 {[%emt 0:01:11]} 6. Rb1 {[%emt 0:03:34]} Nc6 {[%emt 0:01:23]} 7. a3 {[%emt 0:01:53]} a5 {[%emt 0:00:06]} 8. Bd2 {[%emt 0:02:19]} Rb8 {[%emt 0:01:20]} 9. Nf3 {[%emt 0:02:43]} d5 {[%emt 0:01:05]} 10. cxd5 {[%emt 0:03:22]} Nxd5 {[%emt 0:00:03]} 11. O-O {[%emt 0:03:03]} Nc7 {[%emt 0:00:26]} 12. Ne4 {[%emt 0:11:51]} b6 {[%emt 0:00:38]} 13. Qc1 {[%emt 0:11:13]} f5 {[%emt 0:13:35]} 14. Nc3 {[%emt 0:06:49]} e5 {[%emt 0:00:39]} 15. Bh6 {[%emt 0:03:36]} Qf6 {[%emt 0:05:19]} 16. Bg5 {[%emt 0:06:04]} Qd6 {[%emt 0:00:41]} 17. Nd2 {[%emt 0:02:35]} b5 {[%emt 0:05:22]} 18. Nce4 {[%emt 0:19:13]} fxe4 {[%emt 0:01:06]} 19. Nxe4 {[%emt 0:01:13]} Qd7 {[%emt 0:00:01]} 20. Nxc5 {[%emt 0:00:53]} Qd6 {[%emt 0:08:33]} 21. Ne4 {[%emt 0:00:54]} Qd7 {[%emt 0:00:15]} 22. Nc5 {[%emt 0:00:03]} Qd6 {[%emt 0:00:06]} 23. Ne4 {[%emt 0:00:04]} Qd7 {[%emt 0:01:47]} 1/2-1/2

[Event "Bhopal GM Open 2019"]
[Site "Bhopal"]
[Date "2019.12.28"]
[Round "10.17"]
[White "Deshmukh, Anup"]
[Black "Mithil Anande P"]
[Result "1-0"]
[ECO "A50"]
[WhiteElo "2168"]
[BlackElo "1632"]
[Annotator "ChessBase"]
[PlyCount "51"]
[EventDate "2019.12.21"]
[EventType "swiss"]
[EventCountry "IND"]
[SourceTitle "playchess.com"]
[Source "ChessBase"]
[SourceQuality "1"]
[TimeControl "5400+30"]

1. d4 {[%emt 0:00:00]} Nf6 {[%emt 0:00:00]} 2. c4 {[%emt 0:00:13]} Nc6 {[%emt 0:00:11]} 3. Nf3 {[%emt 0:02:30]} e6 {[%emt 0:01:17]} 4. a3 {[%emt 0:00:27]} d6 {[%emt 0:00:18]} 5. Nc3 {[%emt 0:00:11]} g6 {[%emt 0:00:29]} 6. h4 {[%emt 0:06:18]} Bg7 {[%emt 0:03:20]} 7. e4 {[%emt 0:04:19]} a6 {[%emt 0:06:07]} 8. Be2 {[%emt 0:00:23]} Bd7 {[%emt 0:00:47]} 9. Be3 {[%emt 0:01:42]} O-O {[%emt 0:00:49]} 10. Qd2 {[%emt 0:03:17]} Re8 {[%emt 0:00:11]} 11. Bh6 {[%emt 0:03:22]} Bh8 {[%emt 0:00:21]} 12. Bg5 {[%emt 0:00:20]} e5 {[%emt 0:03:00]} 13. dxe5 {[%emt 0:04:36]} dxe5 {[%emt 0:07:09]} 14. h5 {[%emt 0:06:12]} Nd4 {[%emt 0:08:30]} 15. hxg6 {[%emt 0:01:58]} fxg6 {[%emt 0:01:21]} 16. Nd5 {[%emt 0:03:34]} Nxf3+ {[%emt 0:01:10]} 17. gxf3 {[%emt 0:00:39]} Be6 {[%emt 0:03:50]} 18. Bxf6 {[%emt 0:00:50]} Bxf6 {[%emt 0:00:36]} 19. Qh6 {[%emt 0:00:11]} Bxd5 {[%emt 0:01:33]} 20. Qxh7+ {[%emt 0:00:22]} Kf8 {[%emt 0:00:05]} 21. cxd5 {[%emt 0:00:33]} Re7 {[%emt 0:05:10]} 22. Qxg6 {[%emt 0:00:38]} Rf7 {[%emt 0:00:44]} 23. d6 {[%emt 0:06:41]} Qxd6 {[%emt 0:01:45]} 24. Bc4 {[%emt 0:00:26]} Rg7 {[%emt 0:01:04]} 25. Rh8+ {[%emt 0:00:45]} Ke7 {[%emt 0:01:04]} 26. Rh7 {[%emt 0:00:04]} 1-0

[Event "Bhopal GM Open 2019"]
[Site "Bhopal"]
[Date "2019.12.28"]
[Round "10.18"]
[White "Gokhale Rishabh Chandrashekhar"]
[Black "Jay Kundaliya"]
[Result "0-1"]
[ECO "A48"]
[WhiteElo "1927"]
[BlackElo "2088"]
[Annotator "NA RC"]
[PlyCount "84"]
[EventDate "2019.12.21"]
[EventType "swiss"]
[EventCountry "IND"]
[SourceTitle "playchess.com"]
[Source "ChessBase"]
[SourceQuality "1"]
[TimeControl "5400+30"]

1. Nf3 {[%emt 0:00:00]} Nf6 {[%emt 0:01:21]} 2. d4 {[%emt 0:00:00]} g6 3. Bf4 {[%emt 0:01:29]} Bg7 {[%emt 0:00:57]} 4. e3 {[%emt 0:00:06]} d6 {[%emt 0:00:21]} 5. h3 {[%emt 0:00:16]} O-O {[%emt 0:00:10]} 6. Be2 {[%emt 0:00:05]} Nfd7 7. O-O e5 8. Bh2 Nc6 9. c4 f5 10. Nc3 h6 11. Rb1 g5 12. d5 Ne7 13. b4 a5 14. a3 axb4 15. axb4 Ng6 16. Nb5 e4 17. Nfd4 Nde5 18. Qc2 c6 19. Nc3 c5 20. bxc5 dxc5 21. Ne6 Bxe6 22. dxe6 Ra6 23. Rxb7 Rxe6 24. Rd1 Qa5 25. Kh1 Rf7 26. Rb5 Qa3 27. Rb8+ Kh7 28. Nb5 Qa6 29. Rbd8 Nc6 30. R8d6 Rxd6 31. Nxd6 Rf8 32. Bh5 Nb4 33. Qe2 Nd3 34. g4 Nge5 35. Nxf5 Qxc4 36. Bxe5 Bxe5 37. f3 Rd8 38. Rf1 Rb8 39. fxe4 Rb2 40. Qf3 Qc2 41. Bg6+ Kh8 42. Ng3 Qh2# 0-1

[Event "Bhopal GM Open 2019"]
[Site "Bhopal"]
[Date "2019.12.28"]
[Round "10.19"]
[White "Shiva Pavan Teja Sharma U"]
[Black "Jani Kushal R"]
[Result "1/2-1/2"]
[ECO "B90"]
[WhiteElo "2072"]
[BlackElo "1611"]
[Annotator "NA RC"]
[PlyCount "60"]
[EventDate "2019.12.21"]
[EventType "swiss"]
[EventCountry "IND"]
[SourceTitle "playchess.com"]
[Source "ChessBase"]
[SourceQuality "1"]
[TimeControl "5400+30"]

1. e4 {[%emt 0:00:00]} c5 {[%emt 0:00:00]} 2. Nf3 {[%emt 0:00:01]} d6 {[%emt 0:00:00]} 3. d4 {[%emt 0:00:29]} cxd4 {[%emt 0:00:00]} 4. Nxd4 {[%emt 0:00:05]} Nf6 {[%emt 0:00:00]} 5. Nc3 {[%emt 0:00:08]} a6 {[%emt 0:00:00]} 6. Be3 {[%emt 0:00:22]} e5 {[%emt 0:00:49]} 7. Nb3 {[%emt 0:00:29]} Be7 {[%emt 0:00:11]} 8. f3 {[%emt 0:00:11]} Be6 {[%emt 0:00:08]} 9. Qd2 {[%emt 0:00:15]} O-O {[%emt 0:00:09]} 10. O-O-O {[%emt 0:00:13]} b5 {[%emt 0:00:09]} 11. Kb1 {[%emt 0:00:19]} Nbd7 {[%emt 0:00:16]} 12. Qf2 {[%emt 0:01:57] B90: Sicilian Najdorf: Unusual White 6th moves, 6 Be3 Ng4 and 6 Be3 e5} (12. Bd3 Nb6 13. Qf2 Nc4 14. Bxc4 bxc4 15. Nc5 Qc7 16. Nxe6 fxe6 17. Qg3 Rab8 18. Qh3 Kf7 19. f4 Qa5 {1-0 (36) McShane,L (2615)-Chuchelov,V (2598) Germany 2010}) 12... b4 {[%emt 0:05:21]} 13. Nd5 {[%emt 0:03:23]} Bxd5 {[%emt 0:01:37]} 14. exd5 {[%emt 0:00:07]} a5 {[%emt 0:02:29]} 15. Bb5 {[%emt 0:09:11]} a4 {[%emt 0:03:07]} 16. Nd2 $146 {[%emt 0:00:42]} ({Better is Predecessor:} 16. Nc1 $15 Qa5 17. Bc6 Rac8 18. g4 Nc5 19. Nd3 Nfd7 {1-0 (43) Kakuk,S (2188)-Kovacs,R (2081) Hungary 2013}) 16... Nxd5 {[%emt 0:04:41]} 17. Nc4 {[%emt 0:10:49]} Nxe3 {[%emt 0:03:07]} 18. Qxe3 {[%emt 0:00:12]} Qc7 {[%emt 0:06:10]} 19. Bxd7 Qxc4 $17 {[%emt 0:00:19]} 20. Qd3 {[%emt 0:02:14]} Qxd3 {[%emt 0:04:08]} 21. Rxd3 {[%emt 0:00:06]} g6 {[%emt 0:00:19]} 22. Bc6 {[%emt 0:02:08]} Ra7 {[%emt 0:00:54]} 23. b3 {[%emt 0:04:06]} a3 {[%emt 0:01:15]} 24. Bd5 {[%emt 0:01:05]} Rc8 {[%emt 0:00:20]} 25. Re1 {[%emt 0:01:29]} Rac7 {[%emt 0:00:19]} 26. Re2 {[%emt 0:00:13]} Kg7 {[%emt 0:00:51]} 27. Rde3 {[%emt 0:01:10]} Rc5 {[%emt 0:00:58]} 28. Rd3 {[%emt 0:00:05]} f5 {[%emt 0:00:30]} 29. h3 {[%emt 0:01:01]} Rc3 {[%emt 0:00:29]} 30. Rxc3 {[%emt 0:00:27]} Rxc3 1/2-1/2